bitfinex/quotes_ETHUSD_20250529
["timestamp","ask_amount","ask_price","bid_price","bid_amount"]
[1748554205694,5.356,2648.7,2648.5,2.205852]
[1748554205878,5.356,2648.7,2648.6,10.0]
[1748554206190,7.5573591,2648.7,2648.6,10.0]
[1748554206394,7.5573591,2648.7,2648.5,10.0]
[1748554206699,7.5573591,2648.7,2648.6,10.0]
[1748554207855,7.5573591,2648.7,2648.5,10.0]
[1748554208290,7.5573591,2648.7,2648.6,10.0]
[1748554208654,7.5573591,2648.7,2648.5,2.070472]
[1748554208966,0.984,2648.6,2648.5,10.0]
[1748554209300,0.984,2648.6,2648.5,2.070472]
[1748554215598,0.55,2648.5,2648.3,51.619348]
[1748554215893,3.816,2648.4,2648.3,43.24252168]
[1748554216659,3.816,2648.4,2648.3,43.24265524]
[1748554217166,3.816,2648.4,2648.3,42.85379224]
[1748554225313,4.793,2648.4,2648.3,42.85379224]
[1748554231528,0.977,2648.4,2648.3,42.85379224]
[1748554231729,4.79,2648.4,2648.3,42.85379224]
[1748554241705,0.977,2648.4,2648.3,11.77598115]
[1748554241869,4.79,2648.4,2648.3,63.67497492]
[1748554248016,4.79,2648.4,2648.3,57.72014592]
[1748554248180,4.79,2648.4,2648.3,55.82115215]
[1748554249496,4.79,2648.4,2648.3,48.58251266]
[1748554252623,0.55,2648.7,2648.6,40.57411755]
[1748554252823,5.34,2648.7,2648.6,43.03565414]
[1748554258623,0.55,2648.7,2648.6,43.03565414]
[1748554258830,5.34,2648.7,2648.6,43.03565414]
[1748554261630,1.527,2648.7,2648.6,43.03565414]
[1748554261847,5.34,2648.7,2648.6,43.03565414]
[1748554263045,5.34,2648.7,2648.6,51.03565414]
[1748554264116,0.55,2648.7,2648.6,51.03565414]
[1748554264320,5.34,2648.7,2648.6,51.03565414]
[1748554267916,10.04,2648.7,2648.6,51.03565414]
[1748554268718,10.039,2648.7,2648.6,51.03565414]
[1748554272594,5.25,2648.7,2648.6,51.03565414]
[1748554272731,10.039,2648.7,2648.6,51.03565414]
[1748554277778,10.039,2648.7,2648.6,43.25740496]
[1748554278170,9.489,2648.7,2648.6,50.70810395]
[1748554282397,9.489,2648.7,2648.6,47.03298451]
[1748554282576,9.488,2648.7,2648.6,47.03298451]
[1748554296691,5.676,2648.7,2648.6,47.03298451]
[1748554297079,9.488,2648.7,2648.6,47.03298451]
[1748554297773,9.488,2648.7,2648.6,39.09753004]
[1748554300813,9.488,2648.7,2648.3,3.77599754]
[1748554300814,0.55,2648.5,2648.3,3.77589244]
[1748554301033,4.362,2648.4,2648.3,10.32619944]
[1748554301307,4.362,2648.4,2648.3,12.78773603]
[1748554301506,4.362,2648.4,2648.3,20.78773603]
[1748554306506,9.062,2648.4,2648.3,20.78773603]
[1748554317701,5.25,2648.4,2648.3,20.78773603]
[1748554317947,9.062,2648.4,2648.3,20.78773603]
[1748554321058,4.7,2648.4,2648.3,20.78773603]
[1748554321271,4.7,2648.4,2648.3,24.1803219]
[1748554321555,8.512,2648.4,2648.3,24.1803219]
[1748554321917,8.512,2648.4,2648.3,15.58748179]
[1748554322155,4.7,2648.4,2648.3,15.58748179]
[1748554322452,9.488,2648.4,2648.3,19.36337423]
[1748554322813,4.7,2648.4,2648.3,19.36337423]
[1748554323153,9.487,2648.4,2648.3,19.36337423]
[1748554323917,4.7,2648.4,2648.3,19.36337423]
[1748554324156,5.676,2648.4,2648.3,19.36337423]
[1748554324391,4.787,2648.4,2648.3,19.36337423]
[1748554324919,0.976,2648.4,2648.3,19.36337423]
[1748554325118,4.787,2648.4,2648.3,19.36337423]
[1748554332373,4.7,2648.7,2648.6,3.77557955]
[1748554332665,9.487,2648.7,2648.6,41.01816714]
[1748554335037,4.7,2648.7,2648.6,41.01816714]
[1748554335380,9.487,2648.7,2648.6,39.92516714]
[1748554335941,4.7,2648.7,2648.6,39.92516714]
[1748554336146,9.487,2648.7,2648.6,39.92516714]
[1748554339707,4.7,2648.7,2648.6,39.92516714]
[1748554340003,9.487,2648.7,2648.6,39.92516714]
[1748554345614,4.7,2648.7,2648.6,39.92516714]
[1748554345822,9.485,2648.7,2648.6,39.92516714]
[1748554349719,4.7,2648.7,2648.6,39.92516714]
[1748554349893,9.485,2648.7,2648.6,39.92516714]
[1748554362856,4.7,2648.7,2648.6,39.92516714]
[1748554363054,10.9903,2648.7,2648.6,24.53195455]
[1748554363280,11.95404111,2648.7,2648.6,22.26690055]
[1748554363592,10.9903,2648.7,2648.6,22.26690055]
[1748554365594,9.485,2648.7,2648.6,24.72843714]
[1748554366432,4.7,2648.7,2648.6,24.72843714]
[1748554366626,9.485,2648.7,2648.6,24.72843714]
[1748554370835,4.7,2648.7,2648.6,24.72843714]
[1748554371034,9.485,2648.7,2648.6,27.67396194]
[1748554371519,9.485,2648.7,2648.6,24.72843714]
[1748554372756,9.484,2648.7,2648.6,24.72843714]
[1748554381646,9.484,2648.7,2648.6,22.26690055]
[1748554391754,5.675,2648.7,2648.6,22.26690055]
[1748554392068,9.484,2648.7,2648.6,22.26690055]
[1748554396064,9.484,2648.7,2648.6,14.38768901]
[1748554396854,9.484,2648.7,2648.6,14.26690055]
[1748554404882,9.483,2648.7,2648.6,22.26690055]
[1748554411275,11.9469,2648.7,2648.6,15.468921]
[1748554412507,11.9469,2648.7,2648.6,19.24450055]
[1748554414779,11.9469,2648.7,2648.6,11.4664666]
[1748554415398,10.9813,2648.7,2648.6,11.24450055]
[1748554415715,10.033,2648.7,2648.6,11.24450055]
[1748554416474,4.7,2648.7,2648.6,11.24450055]
[1748554416707,9.482,2648.7,2648.6,11.24450055]
[1748554426591,9.482,2648.7,2648.6,19.24450055]
[1748554431387,5.674,2648.7,2648.6,19.24450055]
[1748554431588,9.482,2648.7,2648.6,19.24450055]
[1748554439798,4.7,2648.7,2648.6,19.24450055]
[1748554439997,9.481,2648.7,2648.6,19.24450055]
[1748554463974,9.481,2648.7,2648.6,12.42859373]
[1748554465167,4.7,2648.7,2648.6,12.42859373]
[1748554465333,9.48,2648.7,2648.6,12.42859373]
[1748554469149,9.48,2648.7,2648.6,4.66905908]
[1748554469366,9.48,2648.7,2648.6,27.55238355]
[1748554469999,9.48,2648.7,2648.6,23.53211555]
[1748554473973,4.7,2648.7,2648.6,23.53211555]
[1748554474176,5.673,2648.7,2648.6,37.72236345]
[1748554474451,4.779,2648.7,2648.6,37.72236345]
[1748554475071,0.973,2648.7,2648.6,37.72236345]
[1748554475271,4.779,2648.7,2648.6,37.72236345]
[1748554475669,4.7,2648.9,2648.8,40.89431947]
[1748554475873,9.479,2648.9,2648.8,44.13600886]
[1748554476082,9.479,2648.9,2648.8,46.59648354]
[1748554476491,9.479,2648.9,2648.8,44.83807054]
[1748554476787,9.479,2648.9,2648.8,44.09847054]
[1748554482195,9.478,2648.9,2648.8,44.09847054]
[1748554484896,9.478,2648.9,2648.8,41.46309954]
[1748554486488,4.7,2648.9,2648.8,41.46309954]
[1748554486691,9.478,2648.9,2648.8,41.46309954]
[1748554487261,9.478,2648.9,2648.8,41.16309954]
[1748554489799,4.7,2648.9,2648.8,41.16309954]
[1748554490001,9.478,2648.9,2648.8,41.16309954]
[1748554491286,9.478,2648.9,2648.8,37.92141015]
[1748554494402,9.478,2648.9,2648.8,30.43138742]
[1748554495103,9.478,2648.9,2648.8,28.94141015]
[1748554496285,9.478,2648.9,2648.8,36.94141015]
[1748554499102,4.7,2648.9,2648.8,36.94141015]
[1748554499342,9.478,2648.9,2648.8,40.61652959]
[1748554499743,5.673,2648.9,2648.8,43.07700427]
[1748554499894,9.478,2648.9,2648.8,40.61652959]
[1748554500237,9.478,2648.9,2648.8,43.07700427]
[1748554500536,9.477,2648.9,2648.8,43.07700427]
[1748554502437,5.672,2648.9,2648.8,43.07700427]
[1748554502635,9.477,2648.9,2648.8,43.07700427]
[1748554504798,4.777,2648.9,2648.8,43.07700427]
[1748554507994,0.972,2648.9,2648.8,43.07700427]
[1748554508190,4.776,2648.9,2648.8,36.25169396]
[1748554509032,4.7,2649.3,2649.2,46.76227544]
[1748554509206,4.7,2649.4,2649.3,31.97784296]
[1748554509406,4.776,2649.4,2649.3,30.17063196]
[1748554512031,4.776,2649.4,2649.3,27.93830396]
[1748554517301,0.972,2649.4,2649.3,27.93830396]
[1748554517498,4.7,2649.5,2649.4,36.11507349]
[1748554517701,9.475,2649.5,2649.4,42.25066761]
[1748554520018,9.475,2649.5,2649.4,35.10617361]
[1748554523063,4.7,2649.5,2649.4,35.10617361]
[1748554523211,9.475,2649.5,2649.4,35.10617361]
[1748554526059,5.672,2649.5,2649.4,35.10617361]
[1748554526257,9.475,2649.5,2649.4,33.94831561]
[1748554527073,0.972,2649.5,2649.4,33.94831561]
[1748554527242,4.775,2649.5,2649.4,33.94831561]
[1748554527429,4.775,2649.5,2649.4,25.94911403]
[1748554528926,8.15,2649.6,2649.5,3.77429703]
[1748554529154,8.15,2649.6,2649.5,31.6229882]
[1748554529354,13.8508,2649.6,2649.5,18.61498271]
[1748554529670,13.8508,2649.6,2649.5,26.61498271]
[1748554529854,12.925,2649.6,2649.5,26.61498271]
[1748554530627,12.925,2649.6,2649.5,24.15450803]
[1748554530830,12.925,2649.6,2649.5,26.61498271]
[1748554539579,8.15,2649.6,2649.5,26.61498271]
[1748554539893,12.925,2649.6,2649.5,26.61498271]
[1748554541989,4.775,2649.6,2649.5,26.61498271]
[1748554542375,4.775,2649.6,2649.5,24.15450803]
[1748554542577,5.6771,2649.6,2649.5,16.17588703]
[1748554543207,5.6771,2649.6,2649.5,18.63636171]
[1748554545289,5.6771,2649.6,2649.5,16.17588703]
[1748554545830,7.26481,2649.6,2649.5,15.54263203]
[1748554548504,6.2271,2649.6,2649.5,15.54263203]
[1748554549021,10.9271,2649.6,2649.5,15.54263203]
[1748554552040,10.9271,2649.6,2649.5,18.00310671]
[1748554555040,7.1241,2649.6,2649.5,18.00310671]
[1748554555215,10.9271,2649.6,2649.5,18.00310671]
[1748554559925,9.475,2649.6,2649.5,18.00310671]
[1748554560260,9.475,2649.6,2649.5,20.18086133]
[1748554563034,9.474,2649.6,2649.5,20.18086133]
[1748554567037,9.473,2649.6,2649.5,20.18086133]
[1748554567332,5.671,2649.6,2649.5,20.18086133]
[1748554567561,9.473,2649.6,2649.5,20.18086133]
[1748554576897,5.671,2649.6,2649.5,20.18086133]
[1748554577197,9.473,2649.6,2649.5,20.18086133]
[1748554578671,4.7,2649.6,2649.5,20.18086133]
[1748554578899,9.473,2649.6,2649.5,20.18086133]
[1748554581289,4.7,2649.6,2649.5,20.18086133]
[1748554581504,5.671,2649.6,2649.5,22.81343601]
[1748554581717,9.473,2649.6,2649.5,20.35296133]
[1748554582409,5.671,2649.6,2649.5,20.35296133]
[1748554582709,9.473,2649.6,2649.5,20.35296133]
[1748554582859,9.473,2649.6,2649.5,22.81343601]
[1748554583064,9.473,2649.6,2649.5,20.35296133]
[1748554584413,9.473,2649.6,2649.5,22.81343601]
[1748554584595,4.773,2649.6,2649.5,22.81343601]
[1748554584973,4.7,2650.0,2649.9,3.77372731]
[1748554585176,9.473,2650.0,2649.9,22.32266899]
[1748554585457,9.473,2650.0,2649.9,18.56814299]
[1748554603655,5.671,2650.0,2649.9,18.56814299]
[1748554603860,9.473,2650.0,2649.9,18.56814299]
[1748554604557,0.971,2650.0,2649.9,18.56814299]
[1748554604756,4.773,2650.0,2649.9,18.56814299]
[1748554607950,0.9267,2650.1,2650.0,25.1089389]
[1748554608151,5.6997,2650.1,2650.0,25.1089389]
[1748554608353,5.6997,2650.1,2650.0,24.7368759]
[1748554611047,0.9267,2650.1,2650.0,24.7368759]
[1748554611270,4.773,2650.1,2650.0,24.7368759]
[1748554612354,4.773,2650.1,2650.0,11.7735849]
[1748554612554,4.773,2650.1,2650.0,27.6208259]
[1748554614167,9.473,2650.1,2650.0,27.6208259]
[1748554618481,9.473,2650.1,2650.0,19.44763583]
[1748554620599,9.472,2650.1,2650.0,19.44763583]
[1748554623114,5.671,2650.1,2650.0,19.44763583]
[1748554623286,9.472,2650.1,2650.0,19.44763583]
[1748554624700,9.472,2650.1,2650.0,27.44763583]
[1748554626915,9.472,2650.1,2650.0,26.94763583]
[1748554627283,4.7,2650.1,2650.0,26.94763583]
[1748554627478,9.472,2650.1,2650.0,26.94763583]
[1748554629131,5.671,2650.1,2650.0,26.94763583]
[1748554629444,9.472,2650.1,2650.0,22.70249783]
[1748554629644,9.472,2650.1,2650.0,25.16297251]
[1748554631435,10.9208,2650.1,2650.0,13.026838]
[1748554631780,10.9208,2650.1,2650.0,16.8004229]
[1748554631781,11.868,2650.1,2650.0,16.8004229]
[1748554632055,11.868,2650.1,2650.0,13.026838]
[1748554632221,11.868,2650.1,2650.0,16.8004229]
[1748554635755,11.868,2650.1,2650.0,8.56153765]
[1748554642655,11.868,2650.1,2650.0,16.56153765]
[1748554644141,8.067,2650.1,2650.0,16.56153765]
[1748554644347,11.868,2650.1,2650.0,16.56153765]
[1748554646647,11.79197626,2650.1,2650.0,16.56153765]
[1748554646848,11.71587746,2650.1,2650.0,16.56153765]
[1748554647583,11.71587746,2650.1,2650.0,8.0]
[1748554647994,11.71587746,2650.1,2650.0,16.0971469]
[1748554648284,11.71587746,2650.1,2650.0,15.6697859]
[1748554651268,10.76867746,2650.1,2650.0,15.6697859]
[1748554652405,6.96767746,2650.1,2650.0,15.6697859]
[1748554652610,10.76867746,2650.1,2650.0,15.6697859]
[1748554659703,5.99667746,2650.1,2650.0,15.6697859]
[1748554660026,10.76867746,2650.1,2650.0,15.6697859]
[1748554667036,9.86987746,2650.1,2650.0,15.6697859]
[1748554683887,9.75401403,2650.1,2650.0,15.6697859]
[1748554684600,4.98201403,2650.1,2650.0,15.6697859]
[1748554684890,9.75401403,2650.1,2650.0,15.6697859]
[1748554685487,4.98201403,2650.1,2650.0,15.6697859]
[1748554685661,9.75401403,2650.1,2650.0,15.6697859]
[1748554692129,11.73814543,2650.1,2650.0,11.896201]
[1748554692338,11.73814543,2650.1,2649.8,3.77384026]
[1748554692489,11.73814543,2650.1,2649.9,8.0]
[1748554692804,0.55,2650.0,2649.8,8.0]
[1748554692990,3.801,2649.9,2649.8,15.47217572]
[1748554695212,3.801,2649.9,2649.8,14.56624272]
[1748554697106,9.20401403,2649.9,2649.8,14.56624272]
[1748554710959,9.75401403,2649.9,2649.8,14.56624272]
[1748554716957,5.95301403,2649.9,2649.8,14.56624272]
[1748554717278,5.95301403,2649.9,2649.8,16.41767673]
[1748554717279,9.75401403,2649.9,2649.8,16.41767673]
[1748554717444,9.20401403,2649.9,2649.8,16.41767673]
[1748554730314,5.40301403,2649.9,2649.8,16.41767673]
[1748554730629,9.20401403,2649.9,2649.8,16.41767673]
[1748554733926,5.40301403,2649.9,2649.8,16.41767673]
[1748554734255,9.20401403,2649.9,2649.8,16.41767673]
[1748554736123,9.20401403,2649.9,2649.8,7.898466]
[1748554741588,9.20401403,2649.9,2649.8,15.898466]
[1748554743152,9.20401403,2649.9,2649.8,16.026866]
[1748554743703,9.20401403,2649.9,2649.8,9.67579509]
[1748554744033,9.20401403,2649.9,2649.8,52.14859209]
[1748554744241,9.20401403,2649.9,2649.8,55.92246181]
[1748554744407,4.772,2649.9,2649.8,55.92246181]
[1748554744809,0.971,2649.9,2649.8,55.92246181]
[1748554745111,4.772,2649.9,2649.8,38.42986981]
[1748554746055,4.43201403,2650.4,2650.3,12.47111875]
[1748554746221,9.20301403,2650.4,2650.3,12.47111875]
[1748554747143,4.43201403,2650.4,2650.3,12.47111875]
[1748554747342,9.20201403,2650.4,2650.3,10.81340575]
[1748554747651,9.20201403,2650.4,2650.3,6.23301875]
[1748554748029,9.20201403,2650.4,2650.3,2.459861]
[1748554748402,9.20201403,2650.4,2650.3,6.23301875]
[1748554748625,4.43201403,2650.4,2650.3,6.23301875]
[1748554748824,9.20201403,2650.4,2650.3,6.23301875]
[1748554756735,4.43201403,2650.4,2650.3,6.23301875]
[1748554756952,4.43201403,2650.4,2650.3,14.23301875]
[1748554757152,5.40201403,2650.4,2650.3,15.65632063]
[1748554757355,9.20201403,2650.4,2650.3,15.65632063]
[1748554758067,9.20201403,2650.4,2650.3,14.23301875]
[1748554759078,5.40201403,2650.4,2650.3,14.23301875]
[1748554759270,9.20201403,2650.4,2650.3,14.23301875]
[1748554759797,5.40201403,2650.4,2650.3,14.23301875]
[1748554759947,9.20201403,2650.4,2650.3,14.23301875]
[1748554760498,5.40201403,2650.4,2650.3,14.23301875]
[1748554760705,5.40201403,2650.4,2650.3,16.08116837]
[1748554760706,9.20201403,2650.4,2650.3,16.08116837]
[1748554762042,4.77,2650.4,2650.3,16.08116837]
[1748554764055,8.147,2650.5,2650.4,50.12708239]
[1748554764287,12.917,2650.5,2650.4,50.12708239]
[1748554764902,9.117,2650.5,2650.4,50.12708239]
[1748554765103,12.917,2650.5,2650.4,22.20148437]
[1748554765403,12.917,2650.5,2650.4,22.24468437]
[1748554765704,12.917,2650.5,2650.4,26.64781286]
[1748554767311,4.43201403,2650.8,2650.7,3.77258837]
[1748554767465,4.43201403,2651.1,2651.0,3.77216144]
[1748554767792,5.40201403,2651.1,2651.0,11.77216144]
[1748554767969,9.20201403,2651.1,2651.0,22.70003544]
[1748554770571,10.68201403,2651.1,2651.0,14.659611]
[1748554770771,11.60221543,2651.1,2651.0,16.87461144]
[1748554770980,11.60221543,2651.1,2651.0,16.29061144]
[1748554772330,11.59626256,2651.1,2651.0,16.29061144]
[1748554772502,11.59626256,2651.1,2651.0,8.0]
[1748554772707,11.59626256,2651.1,2651.0,14.11835044]
[1748554773226,11.59626256,2651.1,2651.0,14.23540144]
[1748554774236,11.59626256,2651.1,2651.0,11.77216144]
[1748554774393,10.67606116,2651.1,2651.0,11.77216144]
[1748554775027,10.67606116,2651.1,2651.0,13.98729944]
[1748554775437,10.67606116,2651.1,2651.0,11.77216144]
[1748554775731,10.67606116,2651.1,2651.0,14.51096544]
[1748554775894,10.67606116,2651.1,2651.0,11.77216144]
[1748554777298,10.67606116,2651.1,2651.0,18.14901544]
[1748554777498,6.32606116,2651.1,2651.0,18.14901544]
[1748554777730,9.19506116,2651.1,2651.0,18.14901544]
[1748554778716,5.39606116,2651.1,2651.0,18.14901544]
[1748554778915,9.19506116,2651.1,2651.0,18.14901544]
[1748554782419,9.74506116,2651.1,2651.0,14.376854]
[1748554782621,0.55,2651.0,2650.9,8.0]
[1748554782940,4.97606116,2651.0,2650.9,11.219294]
[1748554783172,6.19792189,2651.0,2650.9,10.736222]
[1748554785627,6.19792189,2651.0,2650.9,14.50852574]
[1748554786631,6.19792189,2651.0,2650.8,3.77238255]
[1748554786973,5.96666116,2651.0,2650.9,8.0]
[1748554787135,9.76566116,2651.0,2650.9,8.0]
[1748554788009,9.76566116,2651.0,2650.8,13.77238255]
[1748554788208,9.76566116,2651.0,2650.9,3.77230374]
[1748554788836,9.76566116,2651.0,2650.9,6.72821974]
[1748554789154,10.83922728,2651.0,2650.9,3.77230374]
[1748554790819,10.83922728,2651.0,2650.9,6.62298774]
[1748554792553,10.83922728,2651.0,2650.9,14.62298774]
[1748554794946,10.83922728,2651.0,2650.9,11.77230374]
[1748554795148,8.77506116,2651.0,2650.9,14.24287074]
[1748554795354,8.77506116,2651.0,2650.9,13.89593574]
[1748554800169,4.97606116,2651.0,2650.9,13.89593574]
[1748554800503,0.97,2651.0,2650.9,13.89593574]
[1748554800789,4.773,2651.0,2650.9,13.89593574]
[1748554802688,4.774,2651.0,2650.9,13.89593574]
[1748554813270,0.55,2651.2,2651.1,20.596821]
[1748554813475,5.323,2651.2,2651.1,20.596821]
[1748554813805,5.323,2651.2,2651.1,19.205151]
[1748554814495,6.39420612,2651.2,2651.1,19.205151]
[1748554816168,6.39520612,2651.2,2651.1,22.97717016]
[1748554816384,5.324,2651.2,2651.1,22.97717016]
[1748554816582,5.324,2651.2,2651.1,19.205151]
[1748554818298,9.75006116,2651.2,2651.1,19.205151]
[1748554818500,9.74906116,2651.2,2651.1,22.97717016]
[1748554833932,9.73861951,2651.2,2651.1,22.97717016]
[1748554837333,4.96561951,2651.2,2651.1,22.97717016]
[1748554837531,9.73461951,2651.2,2651.1,22.97717016]
[1748554847721,5.93561951,2651.2,2651.1,22.97717016]
[1748554847925,9.73461951,2651.2,2651.1,22.97717016]
[1748554848718,4.96561951,2651.2,2651.1,22.97717016]
[1748554849044,9.73461951,2651.2,2651.1,22.97717016]
[1748554849948,5.93561951,2651.2,2651.1,22.97717016]
[1748554850137,5.39606116,2651.2,2651.1,25.82230279]
[1748554850340,9.19506116,2651.2,2651.1,25.82230279]
[1748554850780,9.19506116,2651.2,2651.1,25.65210279]
[1748554850918,9.19506116,2651.2,2651.1,18.18556118]
[1748554852054,9.19506116,2651.2,2651.1,17.65210279]
[1748554852959,9.19506116,2651.2,2651.1,25.65210279]
[1748554853551,5.39606116,2651.2,2651.1,25.65210279]
[1748554853764,9.19506116,2651.2,2651.1,25.65210279]
[1748554857842,9.19506116,2651.2,2651.1,22.97717016]
[1748554858038,5.39606116,2651.2,2651.1,22.97717016]
[1748554858365,9.19506116,2651.2,2651.1,22.97717016]
[1748554860932,4.42606116,2651.2,2651.1,22.97717016]
[1748554861134,9.19506116,2651.2,2651.1,22.97717016]
[1748554861758,4.42606116,2651.2,2651.1,22.97717016]
[1748554861951,9.19506116,2651.2,2651.1,25.66912279]
[1748554862940,0.97,2651.2,2651.1,25.83932279]
[1748554863367,4.768,2651.2,2651.1,25.83932279]
[1748554863540,8.143,2651.8,2651.1,25.83932279]
[1748554863541,8.143,2651.8,2651.7,3.77116566]
[1748554863748,9.113,2651.8,2651.7,37.58339766]
[1748554863945,12.911,2651.8,2651.7,37.58339766]
[1748554864664,12.911,2651.8,2651.7,37.75359766]
[1748554865065,12.911,2651.8,2651.7,29.51805185]
[1748554865368,12.911,2651.8,2651.7,32.44555029]
[1748554865864,12.911,2651.8,2651.7,23.76000241]
[1748554867165,12.911,2651.8,2651.7,31.76000241]
[1748554869843,9.113,2651.8,2651.7,31.76000241]
[1748554870168,12.911,2651.8,2651.7,31.76000241]
[1748554872466,8.143,2651.8,2651.7,31.76000241]
[1748554872793,4.42606116,2653.8,2653.7,3.76832347]
[1748554872943,9.19406116,2653.8,2653.7,3.76832347]
[1748554873138,0.97,2653.8,2653.7,20.02786647]
[1748554873371,0.97,2653.8,2653.7,28.94264447]
[1748554873574,4.771,2653.8,2653.7,28.94264447]
[1748554874510,0.97,2653.8,2653.7,28.94264447]
[1748554874803,4.771,2653.8,2653.7,28.94264447]
[1748554875166,0.97,2653.8,2653.7,28.94264447]
[1748554875366,4.771,2653.8,2653.7,28.94264447]
[1748554876510,4.771,2653.8,2652.8,4.89972737]
[1748554876511,1.4947,2653.5,2652.5,5.8987]
[1748554876713,0.55,2652.6,2652.2,5.281715]
[1748554876866,0.55,2652.6,2651.2,0.00806633]
[1748554876867,3.76889156,2653.3,2651.2,0.00806633]
[1748554876868,4.32173462,2651.3,2651.2,0.00806633]
[1748554877066,4.32173462,2651.3,2649.5,17.63602]
[1748554877068,0.9447,2650.5,2649.5,17.63602]
[1748554877295,0.55,2650.4,2650.2,3.77322346]
[1748554877515,0.55,2650.8,2650.7,3.77258837]
[1748554877669,0.55,2650.8,2650.7,23.93923737]
[1748554877670,4.82,2650.8,2650.7,23.93923737]
[1748554878009,0.969,2650.8,2650.7,23.93923737]
[1748554878208,4.82,2650.8,2650.7,27.08770738]
[1748554878508,0.969,2650.8,2650.7,35.08770738]
[1748554878709,4.822,2650.8,2650.7,35.08770738]
[1748554878914,8.139,2651.3,2651.2,3.77187688]
[1748554879097,11.995,2651.3,2651.2,46.59791557]
[1748554880013,11.995,2651.3,2651.2,42.10169757]
[1748554880666,11.999,2651.3,2651.2,42.10169757]
[1748554884964,11.999,2651.3,2651.2,41.34730788]
[1748554885289,11.999,2651.3,2651.2,25.19531588]
[1748554885489,11.999,2651.3,2651.2,23.00865488]
[1748554889871,12.549,2651.3,2651.2,22.53168588]
[1748554891222,8.139,2651.3,2651.2,22.53168588]
[1748554891422,11.999,2651.3,2651.2,22.53168588]
[1748554891777,8.139,2651.3,2651.2,22.53168588]
[1748554891976,11.998,2651.3,2651.2,22.53168588]
[1748554892171,16.42406116,2651.3,2651.2,22.53168588]
[1748554893310,16.42406116,2651.3,2651.2,25.16205467]
[1748554893874,16.42306116,2651.3,2651.2,25.16205467]
[1748554896092,16.42206116,2651.3,2651.2,25.16205467]
[1748554896292,12.56506116,2651.3,2651.2,25.16205467]
[1748554896499,16.42306116,2651.3,2651.2,25.16205467]
[1748554897197,12.56506116,2651.3,2651.2,25.16205467]
[1748554897491,11.997,2651.3,2651.2,25.16205467]
[1748554897690,8.139,2651.3,2651.2,25.16205467]
[1748554897891,11.996,2651.3,2651.2,25.16205467]
[1748554898189,8.139,2651.3,2651.2,25.16205467]
[1748554898414,11.996,2651.3,2651.2,25.16205467]
[1748554899414,8.139,2651.3,2651.2,25.16205467]
[1748554899603,11.995,2651.3,2651.2,25.16205467]
[1748554907163,3.856,2651.3,2651.2,25.16205467]
[1748554910516,3.856,2651.3,2651.2,22.53168588]
[1748554915365,1.519,2651.4,2651.3,45.84338362]
[1748554915685,5.364,2651.4,2651.3,45.84338362]
[1748554931062,0.992,2652.0,2651.9,3.77088125]
[1748554931392,4.833,2652.0,2651.9,42.71203225]
[1748554931550,0.992,2652.0,2651.9,43.84333929]
[1748554931965,4.834,2652.0,2651.9,43.84333929]
[1748554932175,4.833,2652.0,2651.9,43.84333929]
[1748554932348,4.42606116,2653.2,2652.4,3.77008679]
[1748554932552,5.7664,2653.1,2653.0,3.76925072]
[1748554932752,5.7664,2653.1,2653.0,5.30608825]
[1748554933095,5.7664,2653.1,2653.0,11.76925072]
[1748554933096,2.4734,2653.1,2653.0,11.76925072]
[1748554933281,6.3164,2653.1,2653.0,18.75478872]
[1748554933453,1.9234,2653.1,2653.0,16.74942572]
[1748554933658,4.835,2653.1,2653.0,16.74942572]
[1748554934101,5.385,2653.1,2653.0,16.74942572]
[1748554934399,4.835,2653.1,2653.0,16.74942572]
[1748554937011,3.843,2653.1,2653.0,16.74942572]
[1748554937217,4.835,2653.1,2653.0,16.74942572]
[1748554940286,5.385,2653.1,2653.0,12.980175]
[1748554940486,6.01664,2653.1,2653.0,12.980175]
[1748554940707,6.01664,2653.1,2653.0,16.74949275]
[1748554945536,0.55,2652.8,2652.6,3.76981375]
[1748554945738,4.389,2652.7,2652.6,3.76981375]
[1748554945888,4.92765,2652.7,2652.6,13.95520375]
[1748554946302,1.08865,2652.7,2652.6,13.95520375]
[1748554946630,4.389,2652.7,2652.6,13.95520375]
[1748554956823,0.55,2652.7,2652.6,13.95520375]
[1748554957024,4.383,2652.7,2652.6,13.95520375]
[1748554957450,8.80906116,2652.7,2652.6,13.95520375]
[1748554963052,4.97606116,2652.7,2652.6,2.18539]
[1748554963253,8.80606116,2652.7,2652.6,5.9552115]
[1748554965171,8.80606116,2652.7,2652.6,13.9552115]
[1748554966170,8.80606116,2652.7,2652.6,6.7287118]
[1748554966535,8.80606116,2652.7,2652.6,21.1521398]
[1748554966943,8.80606116,2652.7,2652.6,24.9219613]
[1748554969503,9.79406116,2652.7,2652.6,24.9219613]
[1748554970891,5.96406116,2652.7,2652.6,24.9219613]
[1748554971097,9.79006116,2652.7,2652.6,24.9219613]
[1748554974771,5.96406116,2652.7,2652.6,24.9219613]
[1748554974971,9.78806116,2652.7,2652.6,24.9219613]
[1748554980830,5.41406116,2652.7,2652.6,27.99205813]
[1748554981126,4.812,2652.7,2652.6,27.99205813]
[1748554983158,0.55,2653.1,2653.0,11.76931775]
[1748554983361,5.361,2653.1,2653.0,38.65342075]
[1748554984971,1.538,2653.1,2653.0,38.65342075]
[1748554985111,5.36,2653.1,2653.0,38.65342075]
[1748554986456,0.988,2653.1,2653.0,40.20385252]
[1748554986966,4.81,2653.1,2653.0,40.20385252]
[1748554988766,4.809,2653.1,2653.0,40.20385252]
[1748554989948,4.809,2653.1,2653.0,43.57569956]
[1748554993253,4.809,2653.1,2653.0,43.37479956]
[1748555000072,4.809,2653.1,2653.0,42.45522141]
[1748555008176,4.801,2653.1,2653.0,42.62052141]
[1748555008360,4.804,2653.1,2653.0,42.62052141]
[1748555011787,4.803,2653.1,2653.0,42.62052141]
[1748555012159,4.97606116,2653.5,2653.4,30.65285252]
[1748555012489,9.77306116,2653.5,2653.4,43.97431824]